bitfinex/quotes_BTCUSD_20250414
["timestamp","ask_amount","ask_price","bid_price","bid_amount"]
[1744619711566,0.002,84589.0,84588.0,0.17230573]
[1744619712529,0.004,84589.0,84588.0,0.17230573]
[1744619712944,0.002,84589.0,84588.0,0.17230573]
[1744619713124,0.003,84589.0,84588.0,0.17230573]
[1744619713471,0.003,84589.0,84588.0,0.18684658]
[1744619713602,0.003,84589.0,84588.0,0.23038239]
[1744619713807,0.001,84589.0,84588.0,0.23038239]
[1744619714637,0.001,84589.0,84588.0,0.23274638]
[1744619714895,0.011819,84606.0,84598.0,0.189129]
[1744619715185,0.011819,84608.0,84604.0,0.011819]
[1744619715378,0.011819,84608.0,84607.0,0.189109]
[1744619715379,0.00013859,84608.0,84607.0,0.189109]
[1744619715520,0.00013859,84608.0,84607.0,0.200928]
[1744619716000,0.00013859,84608.0,84607.0,0.298828]
[1744619716856,0.00213859,84608.0,84607.0,0.298828]
[1744619722778,0.00213859,84608.0,84607.0,0.43421039]
[1744619723308,0.00013859,84608.0,84607.0,0.43421039]
[1744619723504,0.00113859,84608.0,84607.0,0.77421039]
[1744619723655,0.0004219,84616.0,84615.0,0.529091]
[1744619723858,0.0004219,84616.0,84615.0,0.75797339]
[1744619725041,0.0004219,84616.0,84615.0,0.76197339]
[1744619725654,0.0004219,84616.0,84615.0,0.42197339]
[1744619725855,0.0004219,84616.0,84615.0,0.40943254]
[1744619726446,0.0004219,84616.0,84615.0,0.42397339]
[1744619731277,0.0004219,84616.0,84615.0,0.43310733]
[1744619731500,0.0004219,84616.0,84615.0,0.42997041]
[1744619737774,0.0004219,84616.0,84615.0,0.24728802]
[1744619737986,0.0004219,84616.0,84615.0,0.36812956]
[1744619738282,0.0004219,84616.0,84615.0,0.38267041]
[1744619739795,0.0004219,84616.0,84615.0,0.24728802]
[1744619740200,0.0004219,84616.0,84615.0,0.38267041]
[1744619746159,0.0004219,84616.0,84615.0,0.38267041]
[1744619747199,0.0004219,84616.0,84615.0,0.37617929]
[1744619751533,0.0004219,84616.0,84615.0,0.37648743]
[1744619756468,1.282e-05,84616.0,84615.0,0.37648743]
[1744619761164,1.282e-05,84616.0,84615.0,0.42258743]
[1744619761812,1.282e-05,84616.0,84615.0,0.42058743]
[1744619762166,1.282e-05,84616.0,84615.0,0.42358743]
[1744619762386,1.282e-05,84616.0,84615.0,0.41958743]
[1744619762915,8.2e-07,84623.0,84622.0,0.64001685]
[1744619763154,8.2e-07,84623.0,84622.0,0.76085839]
[1744619763354,8.2e-07,84623.0,84622.0,0.76674694]
[1744619764120,8.2e-07,84623.0,84622.0,0.76874694]
[1744619764330,8.2e-07,84623.0,84622.0,0.20296455]
[1744619765131,8.2e-07,84623.0,84622.0,0.20096455]
[1744619765490,8.2e-07,84623.0,84622.0,0.19496455]
[1744619765693,8.2e-07,84623.0,84622.0,0.19696455]
[1744619766938,8.2e-07,84623.0,84622.0,0.19727267]
[1744619773838,8.2e-07,84623.0,84622.0,0.33265506]
[1744619775006,8.2e-07,84623.0,84622.0,0.33365506]
[1744619775204,8.2e-07,84623.0,84622.0,0.33165506]
[1744619775748,8.2e-07,84623.0,84622.0,0.33665506]
[1744619776273,8.2e-07,84623.0,84622.0,0.33565505]
[1744619777002,8.2e-07,84623.0,84622.0,0.33765505]
[1744619779290,0.00033425,84627.0,84626.0,0.189067]
[1744619779470,0.00041616,84627.0,84626.0,0.31021665]
[1744619779680,0.00041616,84627.0,84626.0,0.31618323]
[1744619780486,0.00041616,84627.0,84626.0,0.3172664]
[1744619780887,0.00041616,84627.0,84626.0,0.32126639]
[1744619781487,0.00041616,84627.0,84626.0,0.01135785]
[1744619782548,0.00041616,84627.0,84626.0,0.00735785]
[1744619782822,0.00041616,84627.0,84626.0,0.00635785]
[1744619783127,0.00041616,84627.0,84626.0,0.00835785]
[1744619792245,0.00041616,84627.0,84626.0,0.00635785]
[1744619792826,0.00041616,84627.0,84626.0,0.00935785]
[1744619798944,0.02255151,84627.0,84626.0,0.00935785]
[1744619805941,0.02255151,84627.0,84626.0,0.00896658]
[1744619809447,0.21161551,84627.0,84626.0,0.00896658]
[1744619809814,0.21161551,84627.0,84626.0,0.003]
[1744619811529,0.189082,84619.0,84618.0,0.01846166]
[1744619811842,0.189082,84619.0,84618.0,0.02389061]
[1744619812951,0.200897,84621.0,84618.0,0.02489061]
[1744619814190,0.189082,84620.0,84618.0,0.02489061]
[1744619814397,0.189082,84620.0,84618.0,0.00642895]
[1744619814598,0.189082,84620.0,84618.0,0.00542895]
[1744619814804,0.189082,84620.0,84618.0,0.02489079]
[1744619814949,0.189082,84620.0,84618.0,0.01946184]
[1744619815161,0.02211566,84619.0,84618.0,0.01946184]
[1744619815502,0.02211566,84619.0,84618.0,0.02046184]
[1744619815730,0.02211566,84619.0,84618.0,0.002]
[1744619816017,0.07151566,84619.0,84618.0,0.002]
[1744619816226,0.189105,84609.0,84607.0,0.01846263]
[1744619816566,0.02211566,84608.0,84607.0,0.01846263]
[1744619817489,0.011819,84603.0,84594.0,0.200959]
[1744619817697,0.011819,84603.0,84599.0,0.03028488]
[1744619817905,0.01182,84602.0,84599.0,0.01846488]
[1744619818054,0.02211566,84602.0,84601.0,0.200943]
[1744619818388,0.02211566,84602.0,84601.0,0.01182]
[1744619818600,0.011819,84604.0,84601.0,0.01182]
[1744619819020,0.02208748,84603.0,84601.0,0.01182]
[1744619819861,0.200935,84604.0,84600.0,0.01182]
[1744619820231,0.001,84603.0,84600.0,0.01182]
[1744619820595,0.200935,84604.0,84600.0,0.01182]
[1744619820966,0.14112,84606.0,84603.0,0.011819]
[1744619821142,0.4165,84612.0,84609.0,0.200922]
[1744619821379,0.14116,84616.0,84615.0,0.189091]
[1744619821593,0.14157616,84627.0,84623.0,0.011817]
[1744619821866,0.14157616,84627.0,84622.0,0.011817]
[1744619822080,0.011816,84626.0,84624.0,0.0050097]
[1744619822252,0.011816,84626.0,84622.0,0.011817]
[1744619822478,0.14157616,84627.0,84625.0,0.19409752]
[1744619822708,0.14157616,84627.0,84624.0,0.011816]
[1744619822887,0.14157616,84627.0,84626.0,0.00502732]
[1744619823045,0.14157616,84627.0,84624.0,0.011816]
[1744619823245,0.14157616,84627.0,84626.0,0.00503173]
[1744619823487,0.14157616,84627.0,84625.0,0.00502952]
[1744619823722,0.00041616,84627.0,84624.0,0.011816]
[1744619823906,0.00041616,84627.0,84626.0,0.00502512]
[1744619824248,0.00041616,84627.0,84625.0,0.19408971]
[1744619824449,0.00041616,84627.0,84626.0,0.00502291]
[1744619824770,0.00041616,84627.0,84624.0,0.011816]
[1744619824999,0.00041616,84627.0,84626.0,0.00502732]
[1744619825200,0.00041616,84627.0,84625.0,0.00502512]
[1744619825499,0.00041616,84627.0,84626.0,0.00502291]
[1744619825701,0.00041616,84627.0,84624.0,0.011816]
[1744619825907,0.00041616,84627.0,84626.0,0.00502952]
[1744619826158,0.00041616,84627.0,84624.0,0.011816]
[1744619826371,0.00041616,84627.0,84626.0,0.00502952]
[1744619826568,0.00041616,84627.0,84625.0,0.00502732]
[1744619826768,0.00041616,84627.0,84626.0,0.00502952]
[1744619827079,0.20129716,84627.0,84623.0,0.011817]
[1744619827261,0.20129716,84627.0,84626.0,0.00502551]
[1744619827471,0.200898,84620.0,84614.0,0.109518]
[1744619827703,0.011817,84620.0,84615.0,0.13265954]
[1744619827850,0.011817,84620.0,84616.0,0.011818]
[1744619828050,0.011817,84623.0,84618.0,0.011817]
[1744619828250,0.200891,84623.0,84618.0,0.011817]
[1744619828450,0.011817,84622.0,84619.0,0.00501449]
[1744619828895,0.189078,84621.0,84619.0,0.00501449]
[1744619829054,0.011817,84618.0,84615.0,0.011818]
[1744619830660,0.011817,84622.0,84619.0,0.011817]
[1744619831065,0.00041616,84627.0,84626.0,0.189067]
[1744619831270,0.00041616,84627.0,84624.0,0.011816]
[1744619831920,0.00041616,84627.0,84626.0,0.189067]
[1744619834804,0.00041616,84627.0,84626.0,0.190067]
[1744619837378,0.00041616,84627.0,84626.0,0.31090854]
[1744619837581,0.00041616,84627.0,84626.0,0.37394939]
[1744619837954,0.00041616,84627.0,84626.0,0.37294939]
[1744619838118,0.00041616,84627.0,84626.0,0.38565024]
[1744619838320,0.00041616,84627.0,84626.0,0.37394939]
[1744619838567,0.00041616,84627.0,84626.0,0.37294939]
[1744619838926,0.00041616,84627.0,84626.0,0.37594939]
[1744619839136,0.00041616,84627.0,84626.0,0.36140854]
[1744619840651,0.00041616,84627.0,84626.0,0.36240854]
[1744619842255,0.00041616,84627.0,84626.0,0.193067]
[1744619843674,0.00041616,84627.0,84626.0,0.1976084]
[1744619847460,0.00041616,84627.0,84626.0,0.19997148]
[1744619847779,0.00041616,84627.0,84626.0,0.1976084]
[1744619848334,0.00041616,84627.0,84626.0,0.19997148]
[1744619848891,0.00041616,84627.0,84626.0,0.1976084]
[1744619850449,0.00041616,84627.0,84626.0,0.33299079]
[1744619850880,0.00041616,84627.0,84626.0,0.42969079]
[1744619851842,0.00041616,84627.0,84626.0,0.42869079]
[1744619852298,0.00041616,84627.0,84626.0,0.77069079]
[1744619852652,0.00026729,84627.0,84626.0,1.18739079]
[1744619853064,0.0008454,84637.0,84636.0,0.20358485]
[1744619853281,4e-07,84637.0,84636.0,1.1869412]
[1744619853485,4e-07,84637.0,84636.0,1.18457879]
[1744619854787,4e-07,84637.0,84636.0,1.18957879]
[1744619855261,4e-07,84637.0,84636.0,1.18996386]
[1744619855880,4e-07,84637.0,84636.0,1.19196386]
[1744619856225,4e-07,84637.0,84636.0,1.18496386]
[1744619856626,4e-07,84637.0,84636.0,1.19296386]
[1744619857550,4e-07,84637.0,84636.0,1.33404386]
[1744619859120,4e-07,84637.0,84636.0,1.34142405]
[1744619859718,4e-07,84637.0,84636.0,1.33404386]
[1744619862683,4e-07,84637.0,84636.0,1.33204386]
[1744619863144,4e-07,84637.0,84636.0,1.33004386]
[1744619863381,4e-07,84637.0,84636.0,1.33804386]
[1744619870355,4e-07,84637.0,84636.0,1.33804382]
[1744619880949,4e-07,84637.0,84636.0,1.19696382]
[1744619881357,2e-07,84642.0,84641.0,0.574633]
[1744619881654,2e-07,84642.0,84641.0,0.71475085]
[1744619881655,6.026e-05,84642.0,84641.0,0.71475085]
[1744619883026,6.026e-05,84642.0,84641.0,0.72075085]
[1744619883286,6.026e-05,84642.0,84641.0,0.72747212]
[1744619883425,2.6e-07,84642.0,84641.0,1.19447212]
[1744619883632,2.6e-07,84642.0,84641.0,1.20247212]
[1744619883871,2.6e-07,84642.0,84641.0,1.20247211]
[1744619884427,2.6e-07,84642.0,84641.0,1.19447211]
[1744619884538,2.6e-07,84642.0,84641.0,1.19047211]
[1744619884740,2.6e-07,84642.0,84641.0,1.20347211]
[1744619885389,2.6e-07,84642.0,84641.0,1.19947211]
[1744619885602,2.6e-07,84642.0,84641.0,1.20447211]
[1744619893276,5.6e-07,84654.0,84652.0,0.40034085]
[1744619893485,0.00046261,84654.0,84653.0,1.13125026]
[1744619893692,0.00046261,84654.0,84653.0,1.13298878]
[1744619895088,0.00046261,84654.0,84653.0,1.14884418]
[1744619896396,0.00046261,84654.0,84653.0,1.15684418]
[1744619897707,0.00046261,84654.0,84653.0,1.15684417]
[1744619899415,0.00046261,84654.0,84653.0,1.11104417]
[1744619899611,0.00046261,84654.0,84653.0,0.74464792]
[1744619899946,0.00046261,84654.0,84653.0,0.75918877]
[1744619900133,0.00046261,84654.0,84653.0,0.74464792]
[1744619900334,0.00046261,84654.0,84653.0,0.62380637]
[1744619900554,0.00046261,84654.0,84653.0,0.61580637]
[1744619900758,0.00046261,84654.0,84653.0,0.61180637]
[1744619900951,0.00046261,84654.0,84653.0,0.61380637]
[1744619901201,0.00046261,84654.0,84653.0,0.61880637]
[1744619901415,0.00046261,84654.0,84653.0,0.42980037]
[1744619901840,0.00046261,84654.0,84653.0,0.01110037]
[1744619902047,0.200813,84656.0,84653.0,0.01110037]
[1744619902048,0.0979,84655.0,84653.0,0.01110037]
[1744619902258,0.23713892,84654.0,84653.0,0.00738499]
[1744619902461,0.23679885,84654.0,84653.0,0.00732005]
[1744619902874,0.0482,84654.0,84653.0,0.00232481]
[1744619903465,0.0482,84654.0,84653.0,0.00415692]
[1744619903678,0.0482,84654.0,84653.0,0.00032481]
[1744619903876,0.0482,84654.0,84653.0,0.00415692]
[1744619904096,0.0482,84654.0,84653.0,0.00032481]
[1744619904300,0.0482,84654.0,84653.0,0.00415692]
[1744619904476,0.0482,84654.0,84653.0,0.00032481]
[1744619904680,0.0482,84654.0,84653.0,0.00414812]
[1744619905966,0.0482,84654.0,84653.0,0.00514812]
[1744619906168,0.0482,84654.0,84653.0,0.00414812]
[1744619906714,0.237204,84654.0,84653.0,0.00514812]
[1744619907114,0.237204,84654.0,84653.0,0.00132481]
[1744619909762,0.21390833,84654.0,84653.0,0.00132481]
[1744619910344,0.21354877,84654.0,84653.0,0.00132481]
[1744619910551,0.79829031,84654.0,84653.0,0.00132481]
[1744619912034,0.79829031,84654.0,84653.0,0.00032481]
[1744619912927,0.79929031,84654.0,84653.0,0.00032481]
[1744619913233,0.67844877,84654.0,84653.0,0.00032481]
[1744619913990,0.81944877,84654.0,84653.0,0.00032481]
[1744619914189,0.81844877,84654.0,84653.0,0.00032481]
[1744619914401,0.82044877,84654.0,84653.0,0.00032481]
[1744619915786,0.67944877,84654.0,84653.0,0.00032481]
[1744619924360,0.654904,84654.0,84653.0,0.00032481]
[1744619928155,0.654904,84654.0,84653.0,0.00032481]
[1744619928363,0.67697904,84654.0,84653.0,0.00032481]
[1744619928568,0.67484056,84654.0,84653.0,0.00032481]
[1744619929773,0.011813,84646.0,84643.0,0.011814]
[1744619930083,0.011813,84646.0,84644.0,0.00388084]
[1744619931018,0.141,84648.0,84647.0,0.18902]
[1744619931181,0.141,84648.0,84647.0,0.19289864]
[1744619931785,0.141,84648.0,84647.0,0.00387864]
[1744619932778,0.142,84648.0,84647.0,0.00387864]
[1744619934806,0.001,84648.0,84647.0,0.00387864]
[1744619935503,0.14106001,84656.0,84653.0,0.011812]
[1744619935862,6.001e-05,84656.0,84654.0,0.00388974]
[1744619936242,6.001e-05,84656.0,84652.0,0.011813]
[1744619936441,6.001e-05,84656.0,84653.0,0.00388974]
[1744619936903,0.01187201,84656.0,84653.0,0.00388974]
[1744619937105,0.189002,84655.0,84653.0,0.00388974]
[1744619937480,0.011813,84650.0,84646.0,0.011813]
[1744619938003,0.011813,84650.0,84647.0,0.00387653]
[1744619938596,0.189018,84648.0,84647.0,0.00387653]
[1744619938746,0.200831,84648.0,84645.0,0.011814]
[1744619938949,0.011814,84642.0,84638.0,0.060615]
[1744619939148,0.011814,84643.0,84640.0,0.011814]
[1744619939352,0.011814,84643.0,84640.0,0.200849]
[1744619939803,0.02211666,84642.0,84640.0,0.200849]
[1744619940002,0.02211666,84641.0,84640.0,0.200849]
[1744619940406,0.02211666,84641.0,84640.0,0.202849]
[1744619940602,0.02211666,84641.0,84640.0,0.002]
[1744619940893,0.02211666,84641.0,84638.0,0.011815]
[1744619941074,0.02211666,84640.0,84638.0,0.011815]
[1744619941699,0.02211666,84639.0,84638.0,0.011815]
[1744619942787,0.02211666,84639.0,84632.0,0.011815]
[1744619942788,0.011815,84635.0,84632.0,0.011815]
[1744619942987,0.011815,84637.0,84633.0,0.011815]
[1744619943192,0.02211666,84639.0,84634.0,0.011815]
[1744619943456,0.141,84641.0,84638.0,0.013815]
[1744619943754,0.152814,84641.0,84637.0,0.200857]
[1744619943958,0.02211748,84640.0,84637.0,0.200857]
[1744619944755,0.02211748,84639.0,84637.0,0.011815]
[1744619945286,0.152814,84641.0,84637.0,0.0117714]
[1744619946325,0.152814,84641.0,84637.0,0.0127714]
[1744619946527,0.152814,84641.0,84637.0,0.0117714]
[1744619948909,0.00014071,84638.0,84637.0,0.0117714]
[1744619949116,0.00014071,84638.0,84637.0,0.1034714]
[1744619949264,0.00014071,84638.0,84637.0,0.1044714]
[1744619949467,0.00014071,84638.0,84637.0,0.1034714]
[1744619949859,0.00014071,84638.0,84637.0,0.1044714]
[1744619950230,0.12079179,84641.0,84637.0,0.001]
[1744619950231,0.189039,84639.0,84637.0,0.001]
[1744619950409,0.12084154,84638.0,84637.0,0.001]
[1744619950763,0.92244154,84638.0,84625.0,0.0184592]
[1744619950994,0.18908,84620.0,84618.0,0.0008444]
[1744619951150,0.37798,84620.0,84618.0,0.0008444]
[1744619951351,0.40009224,84620.0,84618.0,0.0008444]
[1744619952319,0.40013837,84620.0,84618.0,0.0008444]
[1744619952623,0.37802613,84620.0,84618.0,0.0008444]
[1744619953797,0.37902613,84620.0,84618.0,0.0008444]
[1744619957397,0.49986767,84620.0,84618.0,0.0008444]
[1744619958237,0.52188459,84620.0,84618.0,0.0008444]
[1744619958680,0.52152257,84620.0,84618.0,0.0008444]
[1744619963288,0.49950565,84620.0,84618.0,0.0008444]
[1744619964966,0.91600565,84620.0,84618.0,0.0008444]
[1744619965314,1.25600565,84620.0,84618.0,0.0008444]
[1744619966184,1.30190565,84620.0,84618.0,0.0008444]
[1744619966379,1.30190565,84620.0,84619.0,4e-07]
[1744619966790,1.30090565,84620.0,84619.0,4e-07]
[1744619966993,1.30190565,84620.0,84619.0,4e-07]
[1744619967216,1.42263413,84620.0,84619.0,4e-07]
[1744619967783,1.42363413,84620.0,84619.0,4e-07]
[1744619968167,0.529094,84614.0,84613.0,0.0008444]
[1744619968376,0.64993554,84614.0,84613.0,0.0008444]
[1744619968663,0.69603554,84614.0,84613.0,0.0008444]
[1744619969613,0.79397554,84614.0,84613.0,0.0008444]
[1744619970850,1.21047554,84614.0,84613.0,0.0008444]
[1744619972350,1.21944096,84614.0,84613.0,0.0008444]
[1744619974116,1.09859942,84614.0,84613.0,0.0008444]
[1744619974324,0.948594,84614.0,84613.0,0.0474444]
[1744619974543,1.089634,84614.0,84613.0,0.0474444]
[1744619974764,0.003,84614.0,84613.0,0.2365404]
[1744619974991,0.003,84614.0,84613.0,0.2846404]
[1744619975196,0.003,84614.0,84613.0,0.29017339]
[1744619975752,0.001,84614.0,84613.0,0.29017339]
[1744619975948,0.001,84614.0,84613.0,0.30199139]
[1744619976198,0.002,84614.0,84613.0,0.30199139]
[1744619976816,0.001,84614.0,84613.0,0.30199139]
[1744619976998,0.190094,84614.0,84613.0,0.10107739]
[1744619977195,0.189094,84614.0,84613.0,0.10107739]
[1744619977380,1.447987,84616.0,84613.0,0.0955444]
[1744619977594,0.189094,84614.0,84613.0,0.0955444]
[1744619977797,0.189094,84614.0,84613.0,0.10105259]
[1744619977991,0.189094,84614.0,84613.0,0.0955444]
[1744619978477,0.190094,84614.0,84613.0,0.0955444]
[1744619979009,0.001,84614.0,84613.0,0.0955444]
[1744619979293,0.001,84614.0,84613.0,0.10105906]
[1744619981181,0.001,84614.0,84613.0,0.10296779]
[1744619981443,1.42797264,84616.0,84613.0,0.10296779]
[1744619981574,0.189093,84615.0,84613.0,0.10296779]
[1744619982364,0.189093,84615.0,84613.0,0.09745313]
[1744619982774,0.001,84615.0,84613.0,0.09745313]
[1744619982978,0.001,84615.0,84614.0,0.00551466]
[1744619984875,0.001,84615.0,84613.0,0.09745313]
[1744619985096,0.189094,84614.0,84613.0,0.00275313]
[1744619986487,1.07669088,84616.0,84613.0,0.04775313]
[1744619986686,0.189094,84614.0,84613.0,0.04775313]
[1744619987392,0.189094,84614.0,84613.0,0.05326779]
[1744619987792,0.190094,84614.0,84613.0,0.05326779]
[1744619989453,0.001,84614.0,84613.0,0.05326779]
[1744619989597,0.190094,84614.0,84613.0,0.05326779]
[1744619989796,0.001,84614.0,84613.0,0.05326779]
[1744619990010,0.190094,84614.0,84613.0,0.05326779]
[1744619990209,0.18336384,84614.0,84613.0,0.05326779]
[1744619992834,0.18336384,84614.0,84613.0,0.00275313]
[1744619994405,0.189094,84614.0,84613.0,0.00275313]
[1744619994684,0.189093,84615.0,84613.0,0.00826779]
[1744619995698,0.141,84618.0,84615.0,0.011818]
[1744619995850,0.141,84618.0,84616.0,0.00549153]
[1744619996056,0.330085,84618.0,84614.0,0.061618]
[1744619996273,0.341902,84618.0,84615.0,0.00549814]
[1744619996474,0.341902,84618.0,84615.0,0.00973258]
[1744619996475,0.152817,84618.0,84615.0,0.00973258]
[1744619996643,0.141,84618.0,84615.0,0.21063958]
[1744619996844,0.141,84618.0,84615.0,0.21063959]
[1744619997047,0.153817,84618.0,84615.0,0.0097326]
[1744619997243,0.142,84618.0,84615.0,0.0215506]
[1744619997475,0.141,84618.0,84616.0,0.189089]
[1744619997675,0.141,84618.0,84616.0,0.19332347]
[1744619997885,0.141,84618.0,84617.0,0.00549814]
[1744619998089,0.141,84618.0,84617.0,0.00973262]
[1744619998748,0.142,84618.0,84617.0,0.00973262]
[1744619999169,0.141,84618.0,84617.0,0.00973262]
[1744619999375,0.1416395,84618.0,84617.0,0.00973262]
[1744620001931,0.1416395,84618.0,84617.0,0.10103262]
[1744620002113,0.1416395,84618.0,84617.0,0.10103263]
[1744620002319,0.001,84618.0,84617.0,0.10103263]
[1744620002526,0.001,84618.0,84617.0,0.10103264]
[1744620002680,4.613e-05,84620.0,84618.0,0.189085]
[1744620002886,4.613e-05,84620.0,84619.0,0.00543147]
[1744620003065,4.613e-05,84620.0,84619.0,0.00966598]
[1744620003310,4.613e-05,84620.0,84619.0,0.01202939]
[1744620003484,4.613e-05,84620.0,84619.0,0.05886598]
[1744620004510,4.613e-05,84620.0,84619.0,0.05886599]
[1744620005093,0.00104613,84620.0,84619.0,0.05886599]
[1744620005347,4.613e-05,84620.0,84619.0,0.05886599]
[1744620005529,0.141,84630.0,84628.0,0.0454]
[1744620005530,0.14048372,84630.0,84628.0,0.0454]
[1744620005729,0.14048372,84630.0,84628.0,0.05009657]
[1744620006477,0.14048372,84630.0,84628.0,0.23915857]
[1744620006677,0.00882845,84640.0,84639.0,0.235638]
[1744620006883,0.00882845,84640.0,84639.0,0.24521152]
[1744620007111,0.011813,84648.0,84640.0,0.011814]
[1744620007245,0.011814,84642.0,84641.0,0.00535057]
[1744620007429,0.189027,84644.0,84641.0,0.00958507]
[1744620007634,0.200841,84644.0,84641.0,0.00958507]
[1744620007834,0.011813,84647.0,84643.0,0.011814]
[1744620008133,0.011813,84647.0,84644.0,0.00536048]
[1744620008336,0.189022,84646.0,84644.0,0.00959498]
[1744620008735,0.189022,84646.0,84644.0,0.0042345]
[1744620009164,0.189022,84646.0,84645.0,0.00536709]
[1744620009369,0.189022,84646.0,84645.0,0.00960159]
[1744620009673,0.001,84646.0,84645.0,0.00960159]
[1744620009873,0.011813,84647.0,84645.0,0.00960159]
[1744620010244,0.001,84646.0,84645.0,0.00960159]
[1744620010373,0.011813,84647.0,84645.0,0.00960159]
[1744620011486,0.15292813,84649.0,84645.0,0.02141559]
[1744620011728,0.15292813,84649.0,84646.0,0.011813]
[1744620012035,0.15292813,84649.0,84646.0,0.0160475]
[1744620012233,0.16474113,84649.0,84647.0,0.00536709]
[1744620012446,0.16474113,84649.0,84647.0,0.00960159]
[1744620012577,0.15292813,84649.0,84647.0,0.00960158]
[1744620012785,0.0004224,84653.0,84651.0,0.189011]
[1744620013005,0.01197244,84652.0,84651.0,0.19324547]
[1744620013210,0.01197244,84652.0,84651.0,0.19856206]
[1744620013459,0.01197244,84652.0,84651.0,0.19856205]
[1744620013622,0.01197244,84652.0,84651.0,0.19856204]
[1744620014234,0.0004224,84652.0,84651.0,0.19856203]
[1744620014454,0.0004224,84652.0,84651.0,0.19856202]
[1744620014634,0.0004224,84652.0,84651.0,0.19856201]
[1744620015039,0.0014224,84652.0,84651.0,0.198562]
[1744620015473,0.0014224,84652.0,84651.0,0.24586197]
[1744620015788,0.0014224,84652.0,84651.0,0.24586196]
[1744620015946,0.0014224,84652.0,84651.0,0.24586195]
[1744620016502,0.0014224,84652.0,84651.0,0.36670349]
[1744620016503,0.0004224,84652.0,84651.0,0.36670349]
[1744620016755,0.0014224,84652.0,84651.0,0.36670346]
[1744620016957,0.0014224,84652.0,84651.0,0.36670345]
[1744620017278,0.0014224,84652.0,84651.0,0.38124428]
[1744620017509,0.0014224,84652.0,84651.0,0.76704427]
[1744620017678,0.0004224,84653.0,84651.0,0.76704427]
[1744620017679,0.0004224,84653.0,84651.0,0.76704419]
[1744620017915,0.0004224,84653.0,84652.0,0.23314437]
[1744620018092,8e-07,84654.0,84653.0,0.54354685]
[1744620018293,0.0004222,84671.0,84654.0,0.01454085]
[1744620018526,0.0004222,84671.0,84660.0,0.29893185]
[1744620018725,0.0004222,84671.0,84660.0,0.42400745]
[1744620018903,0.0004222,84671.0,84660.0,0.4291161]
[1744620019100,0.0004222,84671.0,84660.0,0.42911609]
[1744620019308,0.0004222,84671.0,84660.0,0.42911608]
[1744620019510,0.0004222,84671.0,84660.0,0.76911607]
[1744620019706,0.0004222,84671.0,84660.0,0.76911603]
[1744620019904,0.0004222,84671.0,84660.0,0.76911602]
[1744620020109,0.0004222,84671.0,84660.0,0.77411601]
[1744620020379,0.0004222,84671.0,84660.0,0.77411599]
[1744620020556,0.0004222,84671.0,84660.0,0.77411597]
[1744620020854,0.0004222,84671.0,84660.0,0.77411596]
[1744620021056,0.0004222,84671.0,84660.0,1.19481595]
[1744620021257,0.0004222,84671.0,84665.0,0.64012085]
[1744620021464,0.00052579,84666.0,84665.0,0.77031808]
[1744620021664,0.00052579,84666.0,84665.0,0.77031805]
[1744620021837,0.00052579,84666.0,84665.0,0.77031803]
[1744620022033,0.00052579,84666.0,84665.0,0.77031802]
[1744620022242,0.00052579,84666.0,84665.0,0.770318]
[1744620022442,0.00052579,84666.0,84665.0,0.77531799]
[1744620022617,0.00052579,84666.0,84665.0,0.77531797]
[1744620023042,0.00052579,84666.0,84665.0,0.77531796]
[1744620023426,7.9e-07,84666.0,84665.0,0.77531795]
[1744620023634,7.9e-07,84666.0,84665.0,0.77531792]
[1744620023962,7.9e-07,84666.0,84665.0,0.77531789]
[1744620024167,7.9e-07,84666.0,84665.0,0.77731788]
[1744620024363,7.9e-07,84666.0,84665.0,0.77731787]
[1744620024566,7.9e-07,84666.0,84665.0,0.77531784]
[1744620024765,7.9e-07,84666.0,84665.0,0.77031784]
[1744620024992,7.9e-07,84666.0,84665.0,0.78031783]
[1744620025188,7.9e-07,84666.0,84665.0,0.77431783]
[1744620025333,7.9e-07,84666.0,84665.0,0.77431782]
[1744620025543,7.9e-07,84666.0,84665.0,0.78131781]
[1744620025744,7.9e-07,84666.0,84665.0,0.7813178]
[1744620026195,7.9e-07,84666.0,84665.0,0.78131779]
[1744620026585,7.9e-07,84666.0,84665.0,1.20001779]
[1744620026781,7.9e-07,84666.0,84665.0,1.20001778]
[1744620026983,7.9e-07,84666.0,84665.0,1.20001777]
[1744620027827,7.9e-07,84666.0,84665.0,1.20001774]
[1744620027989,7.9e-07,84666.0,84665.0,1.20001771]
[1744620028194,7.9e-07,84666.0,84665.0,1.2000177]
[1744620028797,7.9e-07,84666.0,84665.0,1.20001768]
[1744620029627,7.9e-07,84666.0,84665.0,1.20001767]
[1744620029829,7.9e-07,84666.0,84665.0,1.20001766]
[1744620030467,7.9e-07,84666.0,84665.0,1.20001765]
[1744620030767,7.9e-07,84666.0,84665.0,1.20001764]
[1744620030906,7.9e-07,84666.0,84665.0,1.20001763]
[1744620031105,7.9e-07,84666.0,84665.0,1.20001762]
[1744620031735,7.9e-07,84666.0,84665.0,1.20001761]
[1744620032455,7.9e-07,84666.0,84665.0,1.2000176]
[1744620033143,7.9e-07,84666.0,84665.0,1.20001759]
[1744620034185,7.9e-07,84666.0,84665.0,1.20001758]
[1744620034736,7.9e-07,84666.0,84665.0,1.20001757]
[1744620036309,7.9e-07,84666.0,84665.0,1.20001756]
[1744620036940,7.9e-07,84666.0,84665.0,1.20001755]
[1744620037447,7.9e-07,84666.0,84665.0,1.20001754]
[1744620038283,7.9e-07,84666.0,84665.0,1.20001753]
[1744620038658,0.0004222,84700.0,84685.0,0.528935]
[1744620038796,0.0004222,84700.0,84698.0,0.25034685]
[1744620038797,4e-07,84700.0,84698.0,0.25034685]
[1744620038995,4e-07,84700.0,84699.0,0.13774314]
[1744620039359,0.00013137,84700.0,84699.0,0.14578354]
[1744620039572,0.00013137,84700.0,84699.0,0.14578353]
[1744620039772,0.00013137,84700.0,84699.0,0.14578352]
[1744620040107,0.00013137,84700.0,84699.0,0.14578351]
[1744620040306,0.00013137,84700.0,84699.0,0.15755301]
[1744620040534,0.00013137,84700.0,84699.0,0.157553]
[1744620041214,0.00013137,84700.0,84699.0,0.16855299]
[1744620042475,0.00013137,84700.0,84699.0,0.16855298]
[1744620043279,0.00013137,84700.0,84699.0,0.16855297]
[1744620044723,0.00023756,84709.0,84708.0,0.20342485]
[1744620044920,0.00023756,84709.0,84708.0,0.32426639]
[1744620045127,0.00023756,84709.0,84708.0,0.33047313]
[1744620046189,0.00023756,84709.0,84708.0,0.33547313]
[1744620046621,0.00023756,84709.0,84708.0,0.33747313]
[1744620055407,0.00023756,84709.0,84708.0,0.20209074]
[1744620055552,0.00023756,84709.0,84708.0,0.20524725]
[1744620055745,0.00023756,84709.0,84708.0,0.20524724]
[1744620056923,0.00023756,84709.0,84708.0,0.20524723]
[1744620057335,0.00023756,84709.0,84708.0,0.20524722]
[1744620058595,0.00023756,84709.0,84708.0,0.01636322]